[Event "HSK IM Invitational 2022"]
[Site "Hamburg"]
[Date "2022.05.24"]
[Round "6.5"]
[White "Kopylov, Michael"]
[Black "Garner, Isaac"]
[Result "1/2-1/2"]
[ECO "E05"]
[WhiteElo "2378"]
[BlackElo "2240"]
[Annotator "TA"]
[PlyCount "59"]
[EventDate "2022.05.20"]
[EventType "tourn"]
[EventCountry "GER"]
[SourceTitle "playchess.com"]
[Source "ChessBase"]
[SourceQuality "1"]
[TimeControl "40/5400+30:1800+30"]

{[%evp 25,59,0,0,-25,-21,-38,0,0,0,0,0,0,0,0,0,0,0,0,0,0,0,0,0,0,0,0,4,6,8,8,8,21,14,0,0,0]} 1. d4 {[%emt 0:00:30]} Nf6 {[%emt 0:00:11]} 2. Nf3 {[%emt 0:00:39]} d5 {[%emt 0:00:12]} 3. c4 {[%emt 0:00:22]} e6 {[%emt 0:00:06]} 4. g3 {[%emt 1:30:59]} Be7 {[%emt 0:00:08]} 5. Bg2 {[%emt 0:00:00]} O-O {[%emt 0:00:06]} 6. O-O {[%emt 0:00:00]} dxc4 {[%emt 0:00:14]} 7. Qa4 {[%emt 0:00:00]} a6 {[%emt 0:00:05]} 8. Qxc4 {[%emt 0:00:00]} b5 {[%emt 0:00:06]} 9. Qc2 {[%emt 0:00:00]} Bb7 {[%emt 0:00:05]} 10. Bf4 {[%emt 0:00:00]} Nc6 {[%emt 0:00:08]} 11. Rd1 {[%emt 0:00:00]} Nb4 {[%emt 0:03:22]} 12. Qc1 {[%emt 0:00:00]} Rc8 {[%emt 0:04:22]} 13. Nc3 {[%emt 0:00:00]} Nbd5 {[%emt 0:02:04]} 14. Be5 {[%emt 0:00:00] E05: Open Catalan: 5 Nf3 Be7.} (14. Be3 $5) 14... c5 {[%emt 0:07:12]} 15. dxc5 {[%emt 0:00:00]} Bxc5 {[%emt 0:01:45]} 16. Bxf6 {[%emt 0:00:00] The position is equal.} Qxf6 {[%emt 0:00:27]} 17. Ne4 {[%emt 0:00:00][%csl LRc5,LRf6]} Qe7 {[%emt 0:00:06][%cal Oc5f2] [#] Threatens to win with ...Bxf2+!} 18. Nxc5 {[%emt 0:00:00]} Rxc5 {[%emt 0:00:24]} 19. Qd2 {[%emt 0:00:00]} Rfc8 {[%emt 0:08:31]} 20. Ne1 {[%emt 0:00:00] [#] Inhibits Rc2.} Qc7 $146 {[%emt 0:03:52]} ({Predecessor:} 20... h6 21. Rac1 Rxc1 22. Rxc1 Rxc1 23. Qxc1 Nf6 24. Nd3 Bxg2 25. Kxg2 Qb7+ 26. f3 a5 {1-0 (45) Andersson,U (2575)-Georgiev,K (2535) Sarajevo 1985}) 21. a4 {[%emt 0:00:00]} bxa4 {[%emt 0:06:22]} 22. Rxa4 {[%emt 0:00:00]} h6 {[%emt 0:02:01]} 23. Bf3 {[%emt 0:00:00]} Nb6 {[%emt 0:06:22]} 24. Bxb7 {[%emt 0:00:00]} Qxb7 {[%emt 0:02:01]} 25. Rg4 {[%emt 0:00:00] Strongly threatening Qxh6.} h5 {[%emt 0:02:00]} 26. Rg5 {[%emt 0:00:00]} Nc4 {[%emt 0:12:57] [#]} 27. Qd8+ {[%emt 0:00:00]} Kh7 {[%emt 0:04:51]} 28. Rxc5 {[%emt 0:00:00]} Rxc5 {[%emt 0:00:51]} 29. Qd3+ {[%emt 0:00:00]} g6 {[%emt 0:00:46]} 30. Qd7 {[%emt 0:00:00] A balanced but interesting game.  Weighted Error Value: White=0.04 (flawless) /Black=0.03 (flawless)} 1/2-1/2

[Event "HSK IM Invitational 2022"]
[Site "Hamburg"]
[Date "2022.05.25"]
[Round "7.1"]
[White "Garner, Isaac"]
[Black "Clarke, Brandon G I"]
[Result "0-1"]
[ECO "A38"]
[WhiteElo "2240"]
[BlackElo "2445"]
[Annotator "TA"]
[PlyCount "58"]
[EventDate "2022.05.20"]
[EventType "tourn"]
[EventCountry "GER"]
[SourceTitle "playchess.com"]
[Source "ChessBase"]
[SourceQuality "1"]
[TimeControl "40/5400+30:1800+30"]

{[%evp 17,58,12,20,14,22,12,14,7,22,-11,-15,-20,0,0,15,-13,27,0,0,-10,0,-162,-150,-151,-185,-153,-135,-224,-223,-221,-220,-225,-230,-224,-229,-284,-275,-295,-266,-431,-360,-513,-423]} 1. Nf3 {[%emt 0:02:09]} c5 {[%emt 0:02:28]} 2. c4 {[%emt 0:00:30]} Nf6 {[%emt 0:01:03]} 3. b3 {[%emt 0:00:30]} g6 {[%emt 0:00:23]} 4. Bb2 {[%emt 0:00:15]} Bg7 {[%emt 0:00:02]} 5. g3 {[%emt 1:29:36]} O-O {[%emt 0:00:29]} 6. Bg2 {[%emt 0:00:00]} d6 {[%emt 0:05:22]} 7. O-O {[%emt 0:00:00]} e5 {[%emt 0:00:41]} 8. d3 {[%emt 0:00:00]} Nc6 {[%emt 0:00:36]} 9. Nc3 {[%emt 0:00:00]} Nh5 {[%emt 0:01:49]} 10. e3 {[%emt 0:00:00] A38: Symmetrical English vs ...g6: 4 Bg2 Bg7 5 Nf3 Nf6.} f5 {[%emt 0:00:20]} 11. Nd2 {[%emt 0:00:00]} Be6 {[%emt 0:05:18]} 12. Nd5 {[%emt 0:00:00] The position is equal.} Qd7 {[%emt 0:03:10]} 13. f4 {[%emt 0:00:00]} Rae8 {[%emt 0:04:14]} 14. a3 {[%emt 0:00:00]} Nf6 {[%emt 0:03:01]} 15. Qc2 {[%emt 0:00:00]} Kh8 {[%emt 0:03:52] [#]} 16. Bc3 $146 {[%emt 0:00:00]} ({Predecessor:} 16. Rae1 Bg8 17. Bc3 h6 18. Qb2 g5 19. b4 cxb4 20. axb4 Nxd5 21. cxd5 Ne7 22. fxg5 Nxd5 {0-1 (38) Bricard,E (2430)-D'Amore,C (2405) Manila 1992}) 16... Bg8 {[%emt 0:03:53]} (16... Ng4 $5 {[%cal Re5f4]}) 17. Qb2 {[%emt 0:00:00]} Nxd5 {[%emt 0:05:11]} (17... Ng4 {with more complications.} 18. Rae1 exf4 19. gxf4 Bxc3 20. Qxc3+ Qg7) 18. cxd5 {[%emt 0:00:00]} Nd4 {[%emt 0:00:33]} 19. Nf3 $2 {[%emt 0:00:00] [#]} (19. exd4 $11 {and White has nothing to worry.} exd4 20. Bb4 (20. Ba5 b6 $15)) 19... Nb5 $19 {[%emt 0:00:27]} 20. fxe5 {[%emt 0:00:00]} Nxc3 {[%emt 0:01:03]} 21. Qxc3 {[%emt 0:00:00]} Bxd5 {[%emt 0:01:28][%cal Rd6e5]} 22. d4 {[%emt 0:00:00]} (22. Rac1 $17) 22... Bxf3 {[%emt 0:00:37]} 23. Bxf3 {[%emt 0:00:00]} cxd4 {[%emt 0:00:09]} 24. e6 {[%emt 0:00:00]} dxc3 {[%emt 0:04:34]} ({Inferior is} 24... Rxe6 25. exd4 d5 26. Rac1 $17) 25. exd7 {[%emt 0:00:00]} Re7 {[%emt 0:00:03]} ({Wrong is} 25... Rxe3 $2 26. Bxb7 Rd8 27. Bc6) 26. Bxb7 {[%emt 0:00:00]} Rxd7 {[%emt 0:00:02]} ({Worse is} 26... c2 27. Rac1 $15) 27. Bd5 {[%emt 0:00:00]} Re7 {[%emt 0:00:28]} 28. Rae1 $2 {[%emt 0:00:00] [#]} (28. Rac1 {was called for.}) 28... Rfe8 {[%emt 0:01:02]} 29. e4 {[%emt 0:00:00]} (29. b4 $142) 29... Bh6 {[%emt 0:01:59] Weighted Error Value: White=0.47/Black=0.10 (very precise)} 0-1

[Event "HSK IM Invitational 2022"]
[Site "Hamburg"]
[Date "2022.05.25"]
[Round "7.2"]
[White "Schulze, Lara"]
[Black "Kopylov, Michael"]
[Result "0-1"]
[ECO "B41"]
[WhiteElo "2303"]
[BlackElo "2378"]
[Annotator "TA"]
[PlyCount "90"]
[EventDate "2022.05.20"]
[EventType "tourn"]
[EventCountry "GER"]
[SourceTitle "playchess.com"]
[Source "ChessBase"]
[SourceQuality "1"]
[TimeControl "40/5400+30:1800+30"]

{[%evp 20,90,49,45,49,47,43,9,0,-41,10,2,171,0,11,0,37,55,39,59,50,33,180,166,222,0,0,-17,-37,-50,-31,-77,-72,-77,-47,-111,-8,-8,-5,-41,-43,-52,-30,-36,-31,-192,-192,-192,-192,-192,-192,-208,-207,-209,-202,-202,-202,-202,-202,-386,-379,-523,-261,-230,-207,-494,-410,-403,-400,-387,-387,-348,-306]} 1. e4 {[%emt 0:00:02]} c5 {[%emt 0:00:14]} 2. Nf3 {[%emt 0:00:08]} a6 {[%emt 0:01:59]} 3. c4 {[%emt 0:00:24]} b6 {[%emt 0:00:20]} 4. Nc3 {[%emt 0:04:06]} Bb7 {[%emt 0:00:50]} 5. d4 {[%emt 0:00:22]} cxd4 {[%emt 0:00:10]} 6. Nxd4 {[%emt 0:00:09]} e6 {[%emt 0:00:10]} 7. Be2 {[%emt 0:02:13]} Qc7 {[%emt 0:00:26]} 8. O-O {[%emt 0:00:51]} Nf6 {[%emt 0:00:37]} 9. Qd3 {[%emt 0:01:18]} d6 {[%emt 0:04:26]} 10. f4 {[%emt 0:05:03]} Nbd7 {[%emt 0:04:44]} 11. b4 {[%emt 0:05:52]} d5 {[%emt 0:20:28] B41: Sicilian: Kan Variation: 5 c4.} 12. exd5 {[%emt 0:20:32]} Bxb4 {[%emt 0:00:47] [#]} 13. Bb2 $146 {[%emt 0:12:31]} ({Predecessor:} 13. dxe6 Nc5 14. exf7+ Kxf7 15. Qh3 Bxc3 16. Qxc3 Rhe8 17. Bf3 Nce4 18. Qb4 Rad8 19. Be3 {½-½ (31) Muzychuk,M (2540)-Adhiban,B (2689) Caleta 2019}) 13... Nc5 {[%emt 0:08:07] The position is equal.} 14. Qg3 {[%emt 0:08:26]} Bxc3 {[%emt 0:18:56]} ({Black should try} 14... O-O $15) 15. Qxc3 $11 {[%emt 0:10:07]} ({Of course not} 15. Bxc3 Nce4 16. Qxg7 Rg8 17. Nxe6 Qe7 18. Bxf6 Nxf6 $17) 15... Na4 $2 {[%emt 0:13:01] [#]} (15... O-O $1 $11 {and Black has nothing to worry.}) 16. Qb4 $2 {[%emt 0:07:52]} (16. Qg3 $1 $18 {[%cal Rg3g7]} Ne4 (16... Nxb2 17. Qxg7) 17. Qxg7) 16... Nxb2 {[%emt 0:00:54]} 17. dxe6 {[%emt 0:01:55]} O-O-O {[%emt 0:01:44]} 18. Qxb2 {[%emt 0:00:52] exf7 is the strong threat.} Qc5 {[%emt 0:01:11][%csl LRd4,LRe6]} 19. Rad1 {[%emt 0:00:44]} fxe6 {[%emt 0:04:11]} 20. Kh1 {[%emt 0:00:10]} e5 {[%emt 0:00:31]} (20... Ne4 $14) 21. fxe5 $18 {[%emt 0:02:35]} Qxe5 {[%emt 0:01:19]} (21... Ne4 $142 22. e6 Rhf8) 22. Qxb6 $2 {[%emt 0:03:23]} ({White should play} 22. c5 $18 {Threatens to win with c6.} bxc5 23. Rf5) 22... Rxd4 $1 $11 {[%emt 0:04:28][%mdl 64] Remove Defender} 23. Qxd4 {[%emt 0:02:26]} Qxe2 {[%emt 0:00:09][%csl Gb7][%cal Re2g2] The board is on fire.} 24. Rf2 {[%emt 0:00:08]} Qe6 {[%emt 0:05:28] Active counter play!} 25. c5 {[%emt 0:01:47]} (25. Rb2 $15 Re8 26. Qc5+ Qc6 27. Qb4 (27. Qa7 Qc7 $15)) 25... Re8 $17 {[%emt 0:01:38]} 26. c6 {[%emt 0:01:51]} Qxc6 {[%emt 0:00:51]} 27. Qf4 {[%emt 0:02:12]} (27. Re2 $15) 27... Ne4 {[%emt 0:02:53]} (27... Nd7 $2 28. Rc1 Nc5 29. Rfc2 $18) (27... Re4 $17 28. Qg5 Qd5 $1 29. Rc1+ Rc4 30. Rxc4+ Qxc4) 28. Rb2 $11 {[%emt 0:02:04]} g5 {[%emt 0:02:47]} 29. Qf5+ {[%emt 0:02:59]} Kb8 {[%emt 0:00:41]} 30. Rdb1 $1 {[%emt 0:00:29]} Nd6 {[%emt 0:00:49]} 31. Qxh7 {[%emt 0:00:13]} Ka8 $40 {[%emt 0:00:21][%mdl 128] Hoping for ...Qc3. Black mounts an attack.} 32. Qg6 $2 {[%emt 0:00:50] [#]} (32. Qd3 $15) 32... Qc3 $1 $19 {[%emt 0:00:31] ( -> ...Re1+)} 33. Qxe8+ {[%emt 0:01:32]} Nxe8 {[%emt 0:00:01]} 34. Rxb7 {[%emt 0:00:06] Rb8+ would kill now.} Nd6 {[%emt 0:00:45]} 35. R7b6 {[%emt 0:01:06][%cal Rb6a6]} Qd3 {[%emt 0:00:39]} 36. h3 {[%emt 0:00:14]} Ka7 {[%emt 0:00:36] And now ...Nb5 would win.} 37. R6b3 {[%emt 0:00:50]} Qd5 {[%emt 0:00:20]} 38. Rc1 {[%emt 0:00:24]} a5 {[%emt 0:00:48]} 39. Rc7+ $2 {[%emt 0:00:41]} (39. Rcb1) 39... Ka6 {[%emt 0:00:12]} 40. Rbc3 {[%emt 0:00:25]} a4 {[%emt 0:00:53]} (40... Ne4 $142 41. R3c4 Kb6) 41. R3c5 {[%emt 0:12:51]} Qd2 {[%emt 0:04:52] White must now prevent ...Nb5.} 42. a3 $2 {[%emt 0:04:26]} (42. R7c6+ Kb7 43. Rc1) 42... Nb5 {[%emt 0:02:07]} 43. R7c6+ {[%emt 0:03:48]} Kb7 {[%emt 0:02:08]} 44. Rg6 Nxa3 45. Rgxg5 {[%emt 0:12:03]} Nc2 {[%emt 0:10:54] Never resign too early!  Weighted Error Value: White=0.52/Black=0.42} 0-1

[Event "HSK IM Invitational 2022"]
[Site "Hamburg"]
[Date "2022.05.25"]
[Round "7.3"]
[White "Kotyk, Michael"]
[Black "Bracker, Arne"]
[Result "1/2-1/2"]
[ECO "D35"]
[WhiteElo "2170"]
[BlackElo "2276"]
[Annotator "TA"]
[PlyCount "102"]
[EventDate "2022.05.20"]
[EventType "tourn"]
[EventCountry "GER"]
[SourceTitle "playchess.com"]
[Source "ChessBase"]
[SourceQuality "1"]
[TimeControl "40/5400+30:1800+30"]

{[%evp 9,102,14,31,13,12,16,16,14,11,0,18,-23,-23,-22,-12,-29,-23,-20,-18,-67,-70,-51,-51,-62,-63,-56,-63,-61,-53,-70,-67,-63,-65,-54,-46,-66,-41,-40,-41,-90,-37,-68,-60,-83,-87,-171,-175,-158,-163,-148,-160,-247,-229,-223,-186,-286,-93,-219,-136,-193,-179,-189,-70,-129,-66,-74,-20,-98,-90,-90,-85,-81,-26,-26,0,0,0,0,0,0,0,0,0,0,0,0,0,0,0,0,0,0,0,0,0]} 1. d4 {[%emt 0:01:58]} Nf6 {[%emt 0:00:15]} 2. c4 {[%emt 0:00:24]} e6 {[%emt 0:00:12]} 3. Nc3 {[%emt 0:00:05]} d5 {[%emt 0:00:16]} 4. cxd5 {[%emt 0:00:50]} exd5 {[%emt 0:00:12]} 5. Bg5 {[%emt 0:00:07]} Bb4 {[%emt 0:00:19]} 6. Qa4+ {[%emt 0:01:06] D35: Queen's Gambit Declined: Exchange Variation.} Nc6 {[%emt 0:00:27]} 7. e3 {[%emt 0:00:56]} h6 {[%emt 0:02:09]} 8. Bxf6 {[%emt 0:05:08]} Qxf6 {[%emt 0:00:31]} 9. Bb5 {[%emt 0:00:34]} O-O {[%emt 0:08:37]} 10. Bxc6 {[%emt 0:05:49]} Bxc3+ {[%emt 0:00:24]} 11. bxc3 {[%emt 0:00:06]} bxc6 {[%emt 0:09:30]} 12. Nf3 {[%emt 0:11:22]} Qg6 {[%emt 0:02:33]} 13. O-O {[%emt 0:00:59]} Bh3 {[%emt 0:02:25][%csl Gh3][%cal Rg6g2] [#]} 14. Nh4 {[%emt 0:01:55]} (14. Ne1 $1 $11) 14... Qg5 $1 $15 {[%emt 0:02:30]} 15. Qxc6 {[%emt 0:01:36]} Rae8 {[%emt 0:07:32]} 16. Qxc7 {[%emt 0:04:13]} Qxh4 {[%emt 0:03:32]} 17. gxh3 {[%emt 0:00:28]} Re6 {[%emt 0:00:35]} 18. Qf4 {[%emt 0:02:47]} Qxh3 {[%emt 0:16:46]} ({Much worse is} 18... Rg6+ 19. Kh1 Qxh3 20. Rg1 $11) 19. Kh1 $1 {[%emt 0:01:32] [#]} ({Not} 19. Qg3 $2 Rg6 20. Rae1 h5 $19) 19... Rf6 $146 {[%emt 0:01:36][%mdl 1024] Black has compensation.} ({Much weaker is} 19... Rg6 20. Rg1 $11) ({Predecessor:} 19... Rc8 20. Rg1 g5 21. Rac1 Kf8 22. Qg3 Qxg3 23. hxg3 Rec6 24. Kg2 Rxc3 25. Rxc3 Rxc3 {½-½ (44) Sahinoz,G (1919)-Fletcher,J (2015) England 2019}) 20. Qg3 {[%emt 0:00:36]} Qf5 {[%emt 0:01:32]} 21. Rg1 {[%emt 0:23:47][%csl Gg1][%cal Rg3g7]} g6 {[%emt 0:02:24]} 22. Rg2 {[%emt 0:01:46]} Re8 {[%emt 0:04:16]} 23. Qc7 {[%emt 0:05:38]} a6 {[%emt 0:04:26]} 24. Rc1 {[%emt 0:02:32]} (24. c4 $15 {might be stronger.}) 24... Rc8 {[%emt 0:07:51]} (24... h5 $17) 25. Qe5 {[%emt 0:03:29]} Qf3 {[%emt 0:00:54]} 26. Kg1 {[%emt 0:02:04][%cal Oh2h3]} Rxc3 {[%emt 0:01:38][%cal Rc3c1]} 27. Re1 {[%emt 0:00:49]} (27. Rf1 $17 {was necessary.}) 27... Rc2 $36 {[%emt 0:04:17][%csl LRa2,LRf2][%cal Rc2f2,Bc3c2,Bc2a2,Ba2a1][%mdl 2080] Black is in control.} 28. Qg3 {[%emt 0:00:09]} Rxa2 {[%emt 0:01:29]} 29. Qxf3 {[%emt 0:02:24]} Rxf3 $17 {[%emt 0:00:01][%mdl 4096] Endgame KRR-KRR} 30. Rc1 {[%emt 0:00:06]} (30. Kf1 $17) 30... a5 $19 {[%emt 0:02:45] ...a4 is the strong threat.} 31. h4 {[%emt 0:00:27]} Rf6 {[%emt 0:07:40]} 32. Rc5 {[%emt 0:00:23]} (32. Rc8+ $142 Kg7 33. h5) 32... Rd6 $2 {[%emt 0:01:48]} (32... Ra6 $19 {is more deadly.} 33. Rg3 a4 34. Rc8+ Kg7) 33. f3 {[%emt 0:03:39]} (33. h5 $17) 33... Ra1+ {[%emt 0:00:55]} 34. Kf2 {[%emt 0:01:16]} (34. Kh2 $17) 34... a4 {[%emt 0:02:10]} 35. Ra5 {[%emt 0:00:10]} a3 {[%emt 0:01:00]} (35... Re6 $19 {aiming for ...a3.} 36. f4 Ra2+ 37. Kg1 Rxg2+ 38. Kxg2 Rxe3 39. Rxd5 Rd3) 36. Kg3 {[%emt 0:00:37]} ({Better is} 36. Rg1 $15 Ra2+ 37. Kg3) 36... Rb6 {[%emt 0:00:42]} (36... Rc6 $17 37. Kf4 Kg7) 37. Rc2 $15 {[%emt 0:01:53]} Rb3 {[%emt 0:00:17]} (37... Re6 $17 38. Rc3 a2) 38. Kf4 {[%emt 0:01:04]} (38. Ra7 $11 {remains equal.}) 38... Rh1 {[%emt 0:00:38]} 39. Ra2 {[%emt 0:03:52]} Rxh4+ {[%emt 0:01:30]} 40. Kg3 {[%emt 0:00:01] [#]} Rh1 {[%emt 0:01:01]} ({Black should play} 40... Rh5 $1 $17 41. R2xa3 Rb2) 41. R2xa3 $11 {[%emt 0:31:17]} Rb2 {[%emt 0:01:05]} 42. Rxd5 {[%emt 0:00:00] The position is equal.} g5 {[%emt 0:01:44]} 43. Kg4 {[%emt 0:00:00]} Rf2 {[%emt 0:01:12]} 44. f4 $1 {[%emt 0:00:00]} Rg1+ {[%emt 0:10:35]} 45. Kf5 {[%emt 0:00:00]} Kg7 {[%emt 0:00:06]} 46. Rd7 {[%emt 0:00:00] Hoping for Raa7.} gxf4 {[%emt 0:04:58]} 47. exf4 {[%emt 0:00:00]} Rg6 {[%emt 0:00:13]} 48. Rxf7+ {[%emt 0:00:00]} Kxf7 {[%emt 0:00:08]} 49. Ra7+ {[%emt 0:00:00]} Ke8 {[%emt 0:00:23]} 50. Kxg6 {[%emt 0:00:00] Black must now prevent f5.} Rxf4 {[%emt 0:00:05]} 51. Kxh6 {[%emt 0:00:00]} Rxd4 {[%emt 0:00:06] And White is the lucky defender.  Weighted Error Value: White=0.19 (very precise) /Black=0.17 (very precise)} 1/2-1/2

[Event "HSK IM Invitational 2022"]
[Site "Hamburg"]
[Date "2022.05.25"]
[Round "7.4"]
[White "Kopylov, Daniel"]
[Black "Hommer, Jeremy"]
[Result "1-0"]
[ECO "B17"]
[WhiteElo "2292"]
[BlackElo "2152"]
[Annotator "TA"]
[PlyCount "99"]
[EventDate "2022.05.20"]
[EventType "tourn"]
[EventCountry "GER"]
[SourceTitle "playchess.com"]
[Source "ChessBase"]
[SourceQuality "1"]
[TimeControl "40/5400+30:1800+30"]

{[%evp 22,99,0,0,0,0,0,-3,0,-15,0,0,0,0,-10,-12,1,0,65,27,27,27,39,41,45,42,40,32,67,67,67,76,68,76,77,68,66,67,68,65,68,65,78,82,83,79,94,87,91,89,116,114,170,161,160,160,159,174,186,161,159,154,528,342,6291,6299,6153,6195,6070,5277,2291,739,6287,12827,6211,6211,5314,4731,5418,5417]} 1. e4 {[%emt 0:00:04]} c6 {[%emt 0:00:07]} 2. d4 {[%emt 0:00:06]} d5 {[%emt 0:00:05]} 3. Nc3 {[%emt 0:00:06]} dxe4 {[%emt 0:00:07]} 4. Nxe4 {[%emt 0:00:09]} Nd7 {[%emt 0:00:07]} 5. Nf3 {[%emt 0:00:45]} Ngf6 {[%emt 0:00:06]} 6. Ng3 {[%emt 0:01:19]} e6 {[%emt 0:00:16]} 7. Bd3 {[%emt 0:00:48]} c5 {[%emt 0:00:07]} 8. O-O {[%emt 0:00:42]} Be7 {[%emt 0:00:09]} 9. c4 {[%emt 0:01:43]} O-O {[%emt 0:01:22]} 10. b3 {[%emt 0:08:55]} b6 {[%emt 0:03:04]} 11. Bb2 {[%emt 0:01:08]} Bb7 {[%emt 0:00:14]} 12. Qe2 {[%emt 0:00:57]} Re8 {[%emt 0:00:21] B17: Caro-Kann: Modern Line (4...Nd7).} 13. Rad1 {[%emt 0:00:34]} Qc7 {[%emt 0:00:35]} 14. Ne5 {[%emt 0:05:24]} cxd4 {[%emt 0:05:11] The position is equal.} 15. Bxd4 {[%emt 0:01:46]} Nxe5 {[%emt 0:08:22]} 16. Bxe5 {[%emt 0:07:44]} Qc6 {[%emt 0:00:35][%csl Gb7][%cal Rc6g2]} 17. f3 {[%emt 0:00:40] Active counter play!} Rad8 {[%emt 0:00:28]} 18. Kh1 {[%emt 0:02:24]} Nd7 {[%emt 0:11:52] [#]} 19. Bb2 $146 {[%emt 0:06:59]} ({Predecessor:} 19. Ba1 Qc5 20. Bd4 Qc7 21. Be4 Nf6 {½-½ (21) Ciric,D-Flohr,S Sochi 1965}) 19... Bf6 {[%emt 0:03:16]} (19... Nf6 $11) 20. Be4 {[%emt 0:03:58]} Qc7 {[%emt 0:01:25] [#]} 21. Rxd7 $1 {[%emt 0:13:22]} Rxd7 {[%emt 0:01:38]} (21... Qxd7 22. Bxf6 gxf6 23. Nh5 $16) 22. Bxf6 {[%emt 0:01:03]} gxf6 {[%emt 0:02:57]} 23. Bxb7 {[%emt 0:04:34]} Qxb7 {[%emt 0:00:57]} 24. Nh5 {[%emt 0:00:09]} Red8 {[%emt 0:01:44]} 25. Nxf6+ {[%emt 0:07:11]} Kf8 {[%emt 0:00:34]} 26. Nxd7+ {[%emt 0:00:37]} Qxd7 $14 {[%emt 0:00:11][%mdl 4096] Endgame KQR-KQR} 27. Re1 {[%emt 0:05:11]} Qd4 {[%emt 0:06:24]} 28. h3 {[%emt 0:04:36]} Ke7 {[%emt 0:02:59]} 29. Qc2 {[%emt 0:10:56]} h6 {[%emt 0:14:49]} 30. Qe2 {[%emt 0:06:54]} Rd7 {[%emt 0:01:25]} 31. Rc1 {[%emt 0:01:57]} Qd2 {[%emt 0:12:37] [#]} 32. Rc2 $1 {[%emt 0:00:44]} Qd4 {[%emt 0:00:17]} 33. Qe1 {[%emt 0:01:49]} Ke8 {[%emt 0:13:10]} 34. Kh2 {[%emt 0:01:16]} Qc5 {[%emt 0:02:06]} 35. Qf2 {[%emt 0:00:46]} Qe5+ {[%emt 0:02:36]} 36. f4 {[%emt 0:00:18]} Qe4 {[%emt 0:04:28]} (36... Qd4 $16) 37. Re2 $18 {[%emt 0:00:24]} Qf5 {[%emt 0:00:28]} 38. Re5 {[%emt 0:00:30]} Qf6 {[%emt 0:00:59]} 39. Qe3 {[%emt 0:00:20]} Kf8 {[%emt 0:00:23]} 40. c5 {[%emt 0:00:50]} bxc5 {[%emt 0:00:50]} 41. Rxc5 {[%emt 0:05:28]} Qb2 $2 {[%emt 0:09:58] A mistake that costs the game.} (41... Kg7 $16 42. Ra5 Qe7) 42. f5 {[%emt 0:05:48] Black must now prevent Rc8+.} Rd2 $2 {[%emt 0:00:53]} (42... Qf6 43. Rc8+ Rd8 44. Rxd8+ Qxd8 45. Qxh6+ (45. fxe6 Qd6+ 46. g3 Qxe6 $18) 45... Kg8 46. fxe6 Qd6+ 47. g3 fxe6 48. Qg5+ Kh7) 43. Qxh6+ {[%emt 0:07:41] White is clearly winning.} Ke8 {[%emt 0:00:13]} 44. Qg5 {[%emt 0:00:22] White wants to mate with Rc8+.} Kd7 {[%emt 0:01:01] Prevents Rc8.} 45. fxe6+ {[%emt 0:00:21]} fxe6 {[%emt 0:00:12]} 46. Ra5 {[%emt 0:00:28]} (46. Qg8 $142 Qd4 47. Qc8+ Ke7 48. Rc7+ Kf6 49. Qf8+ Kg6 50. Qg8+ Kf5 51. Rf7+ Ke5 52. Qg3+ Kd5 53. Rd7+ Kc5 54. Rxd4 Rxd4 55. h4) 46... Qd4 {[%emt 0:02:53] [#]} 47. Rxa7+ $3 {[%emt 0:00:34][%mdl 512]} Kc6 {[%emt 0:00:55]} 48. Ra6+ {[%emt 0:03:51]} Kd7 {[%emt 0:00:41]} 49. a4 {[%emt 0:02:13]} Rd1 {[%emt 0:00:50] [#]} 50. Ra7+ $3 {[%emt 0:09:06][%mdl 512] Weighted Error Value: White=0.10 (very precise) /Black=0.39} 1-0